fUST/lending_fUST_20250207
["ID","MTS","AMOUNT","RATE_DAILY","PERIOD"]
[352063967,1738919446929,-500.0,0.00013835,2]
[352063968,1738919446939,-500.0,0.00013835,2]
[352063969,1738919446951,-500.0,0.00013835,2]
[352063970,1738919446960,-500.0,0.00013835,2]
[352063971,1738919446971,-500.0,0.00013835,2]
[352063972,1738919446982,-500.0,0.00013835,2]
[352063973,1738919446992,-230.9501787,0.00013835,2]
[352063974,1738919447001,-500.0,0.00013835,2]
[352063975,1738919447011,-500.0,0.00013835,2]
[352063976,1738919447022,-500.0,0.00013835,2]
[352063977,1738919447031,-500.0,0.00013835,2]
[352063978,1738919447041,-461.25,0.00013835,2]
[352063979,1738919447051,-500.0,0.00013835,2]
[352063980,1738919447060,-500.0,0.00013835,2]
[352063981,1738919447070,-501.40573999,0.00013835,2]
[352063982,1738919447079,-518.36,0.00013835,2]
[352063983,1738919447088,-500.0,0.00013835,2]
[352063984,1738919447099,-500.0,0.00013835,2]
[352063985,1738919447110,-704.71,0.00013835,2]
[352063986,1738919447120,-500.0,0.00013835,2]
[352063987,1738919447132,-500.0,0.00013835,2]
[352063988,1738919447144,-500.0,0.00013835,2]
[352063989,1738919447154,-500.0,0.00013835,2]
[352063990,1738919447164,-500.0,0.00013835,2]
[352063991,1738919447174,-502.50537753,0.00013835,2]
[352063992,1738919447186,-500.0,0.00013835,2]
[352063993,1738919447196,-342.70685066,0.00013835,2]
[352063994,1738919447205,-500.0,0.00013835,2]
[352063995,1738919447216,-496.5,0.00013835,2]
[352063996,1738919447227,-356.04,0.00013835,2]
[352063997,1738919447236,-4124.69,0.00013835,2]
[352063998,1738919447247,-508.01640975,0.00013835,2]
[352063999,1738919447258,-500.64585929,0.00013835,2]
[352064000,1738919447268,-500.0,0.00013835,2]
[352064001,1738919447278,-500.0,0.00013835,2]
[352064002,1738919447289,-833.36,0.00013835,2]
[352064003,1738919447300,-500.23078858,0.00013835,2]
[352064004,1738919447312,-502.27859123,0.00013835,2]
[352064005,1738919447323,-500.0,0.00013835,2]
[352064006,1738919447333,-500.0,0.00013835,2]
[352064007,1738919447343,-500.0,0.00013835,2]
[352064008,1738919447354,-752.29,0.00013835,2]
[352064009,1738919447365,-500.0,0.00013835,2]
[352064010,1738919447376,-1171.56,0.00013835,2]
[352064011,1738919447387,-350.61175563,0.00013835,2]
[352064012,1738919447397,-500.0,0.00013835,2]
[352064013,1738919447407,-500.0,0.00013835,2]
[352064014,1738919447417,-500.0,0.00013835,2]
[352064015,1738919447427,-617.82,0.00013835,2]
[352064016,1738919447437,-500.0,0.00013835,2]
[352064017,1738919447446,-375.11036976,0.00013881,2]
[352064018,1738919447456,-154.8253333,0.0001389,2]
[352064019,1738919447466,-153.0,0.0001389,2]
[352064020,1738919447477,-153.0,0.0001389,2]
[352064021,1738919447486,-224.825521,0.0001389,2]
[352064022,1738919447496,-153.0,0.0001389,2]
[352064023,1738919447506,-285.1082773,0.0001389,2]
[352064024,1738919447517,-775.89921629,0.000139,2]
[352064025,1738919447527,-1639.16999982,0.00013922,2]
[352064026,1738919447536,-447.0,0.00013963,2]
[352064027,1738919447545,-447.0,0.00013963,2]
[352064028,1738919447555,-447.0,0.00013963,2]
[352064029,1738919447565,-447.0,0.00013963,2]
[352064030,1738919447575,-447.0,0.00013963,2]
[352064031,1738919447585,-447.0,0.00013963,2]
[352064032,1738919447595,-447.0,0.00013963,2]
[352064033,1738919447605,-447.0,0.00013963,2]
[352064034,1738919447616,-447.0,0.00013963,2]
[352064035,1738919447627,-447.0,0.00013963,2]
[352064036,1738919447637,-447.0,0.00013963,2]
[352064037,1738919447647,-447.0,0.00013963,2]
[352064038,1738919447656,-447.0,0.00013963,2]
[352064039,1738919447666,-330.0,0.00013963,2]
[352064040,1738919447675,-330.0,0.00013963,2]
[352064041,1738919447686,-330.0,0.00013963,2]
[352064042,1738919447696,-330.0,0.00013963,2]
[352064043,1738919447706,-330.0,0.00013963,2]
[352064044,1738919447716,-330.0,0.00013963,2]
[352064045,1738919447725,-330.0,0.00013963,2]
[352064046,1738919447735,-330.0,0.00013963,2]
[352064047,1738919447745,-330.0,0.00013963,2]
[352064048,1738919447754,-330.0,0.00013963,2]
[352064049,1738919447765,-330.0,0.00013963,2]
[352064050,1738919447775,-330.0,0.00013963,2]
[352064051,1738919447785,-330.0,0.00013963,2]
[352064052,1738919447795,-447.0,0.00013963,2]
[352064053,1738919447806,-447.0,0.00013963,2]
[352064054,1738919447816,-447.0,0.00013963,2]
[352064055,1738919447826,-447.0,0.00013963,2]
[352064056,1738919447835,-447.0,0.00013963,2]
[352064057,1738919447846,-447.0,0.00013963,2]
[352064058,1738919447856,-447.0,0.00013963,2]
[352064059,1738919447866,-447.0,0.00013963,2]
[352064060,1738919447876,-447.0,0.00013963,2]
[352064061,1738919447886,-447.0,0.00013963,2]
[352064062,1738919447896,-447.0,0.00013963,2]
[352064063,1738919447906,-447.0,0.00013963,2]
[352064064,1738919447916,-447.0,0.00013963,2]
[352064065,1738919447926,-447.0,0.00013963,2]
[352064066,1738919447938,-330.0,0.00013963,2]
[352064067,1738919447947,-330.0,0.00013963,2]
[352064068,1738919447956,-330.0,0.00013963,2]
[352064069,1738919447966,-330.0,0.00013963,2]
[352064070,1738919447975,-330.0,0.00013963,2]
[352064071,1738919447983,-330.0,0.00013963,2]
[352064072,1738919447992,-330.0,0.00013963,2]
[352064073,1738919448001,-330.0,0.00013963,2]
[352064074,1738919448011,-330.0,0.00013963,2]
[352064075,1738919448020,-330.0,0.00013963,2]
[352064076,1738919448031,-330.0,0.00013963,2]
[352064077,1738919448042,-330.0,0.00013963,2]
[352064078,1738919448052,-330.0,0.00013963,2]
[352064079,1738919448063,-330.0,0.00013963,2]
[352064080,1738919448072,-447.0,0.00013963,2]
[352064081,1738919448083,-447.0,0.00013963,2]
[352064082,1738919448094,-447.0,0.00013963,2]
[352064083,1738919448105,-447.0,0.00013963,2]
[352064084,1738919448116,-447.0,0.00013963,2]
[352064085,1738919448127,-447.0,0.00013963,2]
[352064086,1738919448140,-447.0,0.00013963,2]
[352064087,1738919448152,-447.0,0.00013963,2]
[352064088,1738919448162,-447.0,0.00013963,2]
[352064089,1738919448173,-447.0,0.00013963,2]
[352064090,1738919448184,-447.0,0.00013963,2]
[352064091,1738919448194,-447.0,0.00013963,2]
[352064092,1738919448204,-447.0,0.00013963,2]
[352064093,1738919448215,-447.0,0.00013963,2]
[352064094,1738919448226,-330.0,0.00013963,2]
[352064095,1738919448238,-330.0,0.00013963,2]
[352064096,1738919448250,-330.0,0.00013963,2]
[352064097,1738919448260,-330.0,0.00013963,2]
[352064098,1738919448271,-330.0,0.00013963,2]
[352064099,1738919448280,-330.0,0.00013963,2]
[352064100,1738919448290,-330.0,0.00013963,2]
[352064101,1738919448301,-330.0,0.00013963,2]
[352064102,1738919448311,-330.0,0.00013963,2]
[352064103,1738919448321,-330.0,0.00013963,2]
[352064104,1738919448331,-330.0,0.00013963,2]
[352064105,1738919448454,-330.0,0.00013963,2]
[352064106,1738919448466,-330.0,0.00013963,2]
[352064107,1738919448476,-330.0,0.00013963,2]
[352064108,1738919448487,-447.0,0.00013963,2]
[352064109,1738919448497,-447.0,0.00013963,2]
[352064110,1738919448508,-447.0,0.00013963,2]
[352064111,1738919448518,-447.0,0.00013963,2]
[352064112,1738919448528,-447.0,0.00013963,2]
[352064113,1738919448538,-447.0,0.00013963,2]
[352064114,1738919448548,-447.0,0.00013963,2]
[352064115,1738919448558,-447.0,0.00013963,2]
[352064116,1738919448568,-447.0,0.00013963,2]
[352064117,1738919448578,-447.0,0.00013963,2]
[352064118,1738919448587,-447.0,0.00013963,2]
[352064119,1738919448598,-447.0,0.00013963,2]
[352064120,1738919448607,-447.0,0.00013963,2]
[352064121,1738919448618,-447.0,0.00013963,2]
[352064122,1738919448628,-330.0,0.00013963,2]
[352064123,1738919448639,-330.0,0.00013963,2]
[352064124,1738919448650,-330.0,0.00013963,2]
[352064125,1738919448660,-330.0,0.00013963,2]
[352064126,1738919448670,-330.0,0.00013963,2]
[352064127,1738919448681,-330.0,0.00013963,2]
[352064128,1738919448691,-330.0,0.00013963,2]
[352064129,1738919448702,-330.0,0.00013963,2]
[352064130,1738919448712,-330.0,0.00013963,2]
[352064131,1738919448723,-330.0,0.00013963,2]
[352064132,1738919448732,-330.0,0.00013963,2]
[352064133,1738919448743,-330.0,0.00013963,2]
[352064134,1738919448753,-330.0,0.00013963,2]
[352064135,1738919448764,-330.0,0.00013963,2]
[352064136,1738919448774,-151.0,0.00013963,2]
[352064137,1738919448784,-151.0,0.00013963,2]
[352064138,1738919448794,-277.155869,0.00013963,2]
[352064139,1738919448804,-277.155869,0.00013963,2]
[352064140,1738919448815,-500.0,0.00013965,2]
[352064141,1738919448826,-500.0,0.00013965,2]
[352064142,1738919448838,-500.0,0.0001397,2]
[352064143,1738919448853,-500.0,0.0001397,2]
[352064144,1738919448864,-160.0,0.00013971,2]
[352064145,1738919448874,-500.0,0.00013972,2]
[352064146,1738919448885,-491.61,0.00013972,2]
[352064147,1738919448896,-500.0,0.00013972,2]
[352064148,1738919448907,-500.0,0.00013972,2]
[352064149,1738919448917,-500.0,0.00013972,2]
[352064150,1738919448928,-500.0,0.00013972,2]
[352064151,1738919448939,-500.0,0.00013972,2]
[352064152,1738919448961,-500.0,0.00013972,2]
[352064153,1738919448973,-500.0,0.00013972,2]
[352064154,1738919448984,-500.0,0.00013972,2]
[352064155,1738919448995,-500.0,0.00013972,2]
[352064156,1738919449006,-500.0,0.00013972,2]
[352064157,1738919449017,-500.0,0.00013972,2]
[352064158,1738919449027,-500.0,0.00013972,2]
[352064159,1738919449038,-500.0,0.00013972,2]
[352064160,1738919449048,-500.0,0.00013972,2]
[352064161,1738919449059,-500.0,0.00013972,2]
[352064162,1738919449069,-500.0,0.00013972,2]
[352064163,1738919449079,-295.28641733,0.00013972,2]
[352064164,1738919449089,-500.0,0.00013972,2]
[352064165,1738919449099,-500.0,0.00013972,2]
[352064166,1738919449108,-574.84,0.00013972,2]
[352064167,1738919449118,-500.0,0.00013972,2]
[352064168,1738919449129,-500.0,0.00013972,2]
[352064169,1738919449143,-500.0,0.00013972,2]
[352064170,1738919449153,-500.0,0.00013972,2]
[352064171,1738919449163,-569.16921014,0.00013972,2]
[352064172,1738919449173,-500.0,0.00013972,2]
[352064173,1738919449187,-500.0,0.00013972,2]
[352064174,1738919449198,-500.0,0.00013972,2]
[352064175,1738919449209,-500.0,0.00013972,2]
[352064176,1738919449221,-500.0,0.00013972,2]
[352064177,1738919449231,-500.0,0.00013972,2]
[352064178,1738919449242,-3096.58,0.00013972,2]
[352064179,1738919449253,-509.85916292,0.00013972,2]
[352064180,1738919449263,-525.33,0.00013972,2]
[352064181,1738919449272,-503.17402534,0.00013972,2]
[352064182,1738919449281,-500.0,0.00013972,2]
[352064183,1738919449291,-500.0,0.00013972,2]
[352064184,1738919449301,-500.0,0.00013972,2]
[352064185,1738919449311,-500.0,0.00013972,2]
[352064186,1738919449321,-500.0,0.00013972,2]
[352064187,1738919449332,-500.0,0.00013972,2]
[352064188,1738919449342,-626.06,0.00013972,2]
[352064189,1738919449353,-312.21,0.00013972,2]
[352064190,1738919449363,-500.0,0.00013972,2]
[352064191,1738919449373,-500.0,0.00013972,2]
[352064192,1738919449383,-502.49519047,0.00013972,2]
[352064193,1738919449393,-500.0,0.00013972,2]
[352064194,1738919449404,-822.52,0.00013972,2]
[352064195,1738919449415,-500.0,0.00013972,2]
[352064196,1738919449425,-500.0,0.00013972,2]
[352064197,1738919449436,-1447.44,0.00013972,2]
[352064198,1738919449447,-500.0,0.00013972,2]
[352064199,1738919449458,-500.0,0.00013972,2]
[352064200,1738919449468,-500.0,0.00013972,2]
[352064201,1738919449479,-151.0,0.00013972,2]
[352064202,1738919449490,-501.99948763,0.00013972,2]
[352064203,1738919449500,-612.4,0.00013972,2]
[352064204,1738919449511,-500.0,0.00013972,2]
[352064205,1738919449521,-754.11,0.00013972,2]
[352064206,1738919449531,-151.0,0.00013972,2]
[352064207,1738919449541,-229.51558749,0.00013972,2]
[352064208,1738919449550,-500.0,0.00013972,2]
[352064209,1738919449560,-346.92022482,0.00013972,2]
[352064210,1738919449570,-603.81,0.00013972,2]
[352064211,1738919449580,-151.0,0.00013972,2]
[352064212,1738919449590,-500.0,0.00013972,2]
[352064213,1738919449600,-500.0,0.00013972,2]
[352064214,1738919449610,-500.0,0.00013972,2]
[352064215,1738919449621,-500.0,0.00013972,2]
[352064216,1738919449631,-503.31623124,0.00013972,2]
[352064217,1738919449640,-500.0,0.00013972,2]
[352064218,1738919449651,-500.0,0.00013972,2]
[352064219,1738919449661,-500.0,0.00013972,2]
[352064220,1738919449674,-500.0,0.00013972,2]
[352064221,1738919449687,-1330.447896,0.00013972,2]
[352064222,1738919449696,-500.0,0.00013972,2]
[352064223,1738919449706,-500.0,0.00013972,2]
[352064224,1738919449715,-500.0,0.00013972,2]
[352064225,1738919449725,-1330.447896,0.00013972,2]
[352064226,1738919449734,-500.0,0.00013972,2]
[352064227,1738919449744,-500.0,0.00013972,2]
[352064228,1738919449754,-500.0,0.00013972,2]
[352064229,1738919449763,-500.0,0.00013972,2]
[352064230,1738919449773,-704.71,0.00013972,2]
[352064231,1738919449783,-248.18,0.00013972,2]
[352064232,1738919449793,-500.0,0.00013972,2]
[352064233,1738919449803,-500.0,0.00013972,2]
[352064234,1738919449813,-500.0,0.00013972,2]
[352064235,1738919449822,-500.0,0.00013972,2]
[352064236,1738919449832,-151.0,0.00013972,2]
[352064237,1738919449841,-990.098526,0.00013972,2]
[352064238,1738919449851,-500.0,0.00013972,2]
[352064239,1738919449862,-990.098526,0.00013972,2]
[352064240,1738919449871,-4124.69,0.00013972,2]
[352064241,1738919449881,-500.0,0.00013972,2]
[352064242,1738919449890,-500.0,0.00013972,2]
[352064243,1738919449900,-833.36,0.00013972,2]
[352064244,1738919449910,-500.0,0.00013972,2]
[352064245,1738919449919,-500.0,0.00013972,2]
[352064246,1738919449929,-745.321136,0.00013972,2]
[352064247,1738919449942,-752.29,0.00013972,2]
[352064248,1738919449951,-163.792095,0.00013972,2]
[352064249,1738919449961,-565.28,0.00013972,2]
[352064250,1738919449971,-745.321136,0.00013972,2]
[352064251,1738919449980,-163.792095,0.00013972,2]
[352064252,1738919449990,-1171.56,0.00013972,2]
[352064253,1738919450000,-689.489097,0.00013972,2]
[352064254,1738919450010,-500.0,0.00013972,2]
[352064255,1738919450020,-689.489097,0.00013972,2]
[352064256,1738919450029,-500.0,0.00013972,2]
[352064257,1738919450039,-325.77785913,0.00013972,2]
[352064258,1738919450048,-617.82,0.00013972,2]
[352064259,1738919450058,-151.0,0.00013972,2]
[352064260,1738919450068,-500.0,0.00013972,2]
[352064261,1738919450078,-400.0,0.00013973,2]
[352064262,1738919450087,-151.0,0.00014,2]
[352064263,1738919450097,-12710.00922137,0.00014,2]
[352064264,1738919450106,-775.89921614,0.00014038,2]
[352064265,1738919450115,-216.54832126,0.00014075,2]
[352064266,1738919450125,-151.0,0.000141,2]
[352064267,1738919450136,-522.73455886,0.00014107,2]
[352064268,1738919450146,-500.0,0.00014107,2]
[352064269,1738919450155,-500.0,0.00014108,2]
[352064270,1738919450164,-500.0,0.00014108,2]
[352064271,1738919450174,-160.0,0.00014108,2]
[352064272,1738919450189,-500.0,0.00014109,2]
[352064273,1738919450199,-162.9655892,0.00014109,2]
[352064274,1738919450210,-500.0,0.00014109,2]
[352064275,1738919450221,-468.94678144,0.00014109,2]
[352064276,1738919450232,-535.12,0.00014109,2]
[352064277,1738919450241,-500.0,0.00014109,2]
[352064278,1738919450251,-500.0,0.00014109,2]
[352064279,1738919450260,-260.42802178,0.00014109,2]
[352064280,1738919450270,-500.0,0.00014109,2]
[352064281,1738919450280,-500.0,0.00014109,2]
[352064282,1738919450290,-500.0,0.00014109,2]
[352064283,1738919450299,-500.0,0.00014109,2]
[352064284,1738919450309,-343.9,0.00014109,2]
[352064285,1738919450318,-422.45,0.00014109,2]
[352064286,1738919450328,-500.0,0.00014109,2]
[352064287,1738919450337,-480.71,0.00014109,2]
[352064288,1738919450346,-547.7801373,0.00014109,2]
[352064289,1738919450356,-151.0,0.00014109,2]
[352064290,1738919450365,-151.0,0.00014109,2]
[352064291,1738919450374,-158.606863,0.00014109,2]
[352064292,1738919450383,-593.94976778,0.00014109,2]
[352064293,1738919450393,-175.943923,0.00014109,2]
[352064294,1738919450402,-500.0,0.00014109,2]
[352064295,1738919450411,-175.943923,0.00014109,2]
[352064296,1738919450420,-574.84,0.00014109,2]
[352064297,1738919450430,-500.0,0.00014109,2]
[352064298,1738919450443,-500.0,0.00014109,2]
[352064299,1738919450452,-861.230022,0.00014109,2]
[352064300,1738919450462,-861.230022,0.00014109,2]
[352064301,1738919450471,-215.77063,0.00014109,2]
[352064302,1738919450481,-151.0,0.00014109,2]
[352064303,1738919450490,-500.0,0.00014109,2]
[352064304,1738919450500,-215.77063,0.00014109,2]
[352064305,1738919450509,-151.0,0.00014109,2]
[352064306,1738919450518,-162.951984,0.00014109,2]
[352064307,1738919450528,-151.0,0.00014109,2]
[352064308,1738919450537,-162.951984,0.00014109,2]
[352064309,1738919450546,-470.399386,0.00014109,2]
[352064310,1738919450555,-470.399386,0.00014109,2]
[352064311,1738919450666,-151.0,0.00014109,2]
[352064312,1738919450675,-500.0,0.00014109,2]
[352064313,1738919450687,-500.0,0.00014109,2]
[352064314,1738919450696,-451.259,0.00014109,2]
[352064315,1738919450705,-500.0,0.00014109,2]
[352064316,1738919450714,-500.0,0.00014109,2]
[352064317,1738919450723,-308.12629,0.00014109,2]
[352064318,1738919450732,-500.0,0.00014109,2]
[352064319,1738919450743,-308.12629,0.00014109,2]
[352064320,1738919450751,-151.0,0.00014109,2]
[352064321,1738919450762,-438.931208,0.00014109,2]
[352064322,1738919450771,-438.931208,0.00014109,2]
[352064323,1738919450780,-629.44589249,0.00014109,2]
[352064324,1738919450790,-3096.58,0.00014109,2]
[352064325,1738919450799,-525.33,0.00014109,2]
[352064326,1738919450808,-151.0,0.00014109,2]
[352064327,1738919450817,-500.0,0.00014109,2]
[352064328,1738919450827,-500.0,0.00014109,2]
[352064329,1738919450836,-500.0,0.00014109,2]
[352064330,1738919450845,-500.0,0.00014109,2]
[352064331,1738919450855,-333.980624,0.00014109,2]
[352064332,1738919450865,-500.0,0.00014109,2]
[352064333,1738919450875,-333.980624,0.00014109,2]
[352064334,1738919450884,-500.0,0.00014109,2]
[352064335,1738919450893,-151.0,0.00014109,2]
[352064336,1738919450903,-500.0,0.00014109,2]
[352064337,1738919450912,-500.0,0.00014109,2]
[352064338,1738919450922,-822.52,0.00014109,2]
[352064339,1738919450931,-500.0,0.00014109,2]
[352064340,1738919450944,-636.71687289,0.00014109,2]
[352064341,1738919450953,-1447.44,0.00014109,2]
[352064342,1738919450963,-500.0,0.00014109,2]
[352064343,1738919450973,-151.0,0.00014109,2]
[352064344,1738919450983,-347.787001,0.00014109,2]
[352064345,1738919450992,-347.787001,0.00014109,2]
[352064346,1738919451003,-500.0,0.00014109,2]
[352064347,1738919451012,-754.11,0.00014109,2]
[352064348,1738919451022,-500.45,0.00014109,2]
[352064349,1738919451031,-500.0,0.00014109,2]
[352064350,1738919451041,-401.36383068,0.00014109,2]
[352064351,1738919451050,-1354.642186,0.00014109,2]
[352064352,1738919451060,-214.23887511,0.00014109,2]
[352064353,1738919451069,-500.0,0.00014109,2]
[352064354,1738919451079,-1354.642186,0.00014109,2]
[352064355,1738919451088,-922.670597,0.00014109,2]
[352064356,1738919451097,-329.14,0.00014109,2]
[352064357,1738919451107,-922.670597,0.00014109,2]
[352064358,1738919451116,-500.0,0.00014109,2]
[352064359,1738919451126,-500.0,0.00014109,2]
[352064360,1738919451139,-500.0,0.00014109,2]
[352064361,1738919451148,-500.0,0.00014109,2]
[352064362,1738919451157,-500.0,0.00014109,2]
[352064363,1738919451167,-500.0,0.00014109,2]
[352064364,1738919451176,-500.0,0.00014109,2]
[352064365,1738919451187,-500.0,0.00014109,2]
[352064366,1738919451196,-4121.609843,0.00014109,2]
[352064367,1738919451206,-500.0,0.00014109,2]
[352064368,1738919451215,-500.0,0.00014109,2]
[352064369,1738919451225,-1756.39389279,0.00014109,2]
[352064373,1738919967899,-5000.0,0.00012396,2]
[352064382,1738920435140,-157.909657,0.00012598,2]
[352064383,1738920435163,-157.909657,0.00012606,2]
[352064384,1738920435185,-157.909657,0.00012614,2]
[352064385,1738920435207,-157.909657,0.00012621,2]
[352064386,1738920435229,-157.909657,0.00012629,2]
[352064387,1738920435252,-250.0,0.00012631,2]
[352064388,1738920435274,-157.909657,0.00012637,2]
[352064389,1738920435295,-157.909657,0.00012645,2]
[352064390,1738920435316,-282.08575926,0.00012648,2]
[352064391,1738920448135,-5870.95471584,0.00012648,2]
[352064392,1738920448156,-157.909657,0.00012653,2]
[352064393,1738920448177,-157.909657,0.00012661,2]
[352064394,1738920448198,-700.0,0.00013068,2]
[352064395,1738920448218,-154.47,0.0001333,2]
[352064396,1738920448240,-300.0,0.00013588,2]
[352064397,1738920448261,-6399.44694744,0.00013588,2]
[352064399,1738920509588,276.73492065,0.0001,2]
[352064400,1738920519325,1000.0,0.0001,2]
[352064401,1738920534333,8514.80512944,9.78e-05,2]
[352064402,1738920534366,3185.19487056,9.78e-05,2]
[352064403,1738920535952,11700.0,0.0001115,2]
[352064405,1738920560278,-158.41802165,0.000125,2]
[352064406,1738920560299,-300.0,0.00012519,2]
[352064407,1738920560320,-11453.09094953,0.0001252,2]
[352064430,1738920632634,-246.90905047,0.0001252,2]
[352064431,1738920632644,-364.6452634,0.00012634,2]
[352064432,1738920632654,-300.0,0.00012672,2]
[352064433,1738920632665,-10447.9535129,0.00012673,2]
[352064434,1738920632674,-9785.45741802,0.00013,2]
[352064435,1738920632684,-7438.69753278,0.00013587,2]
[352064436,1738920632694,-400.06530787,0.00013597,2]
[352064437,1738920632703,-171.09206405,0.00013598,2]
[352064438,1738920632713,-3000.0,0.00013598,2]
[352064439,1738920632723,-2998.67507981,0.000136,2]
[352064440,1738920632733,-10046.0,0.000136,2]
[352064441,1738920632744,-500.0,0.00013696,2]
[352064442,1738920632754,-515.63425486,0.00013696,2]
[352064443,1738920632763,-500.0,0.00013696,2]
[352064444,1738920632773,-161.58675782,0.00013696,2]
[352064445,1738920632783,-407.70568416,0.00013696,2]
[352064446,1738920632792,-350.91025747,0.00013696,2]
[352064447,1738920632802,-500.0,0.00013697,2]
[352064448,1738920632811,-276.39608136,0.00013697,2]
[352064449,1738920632821,-500.0,0.00013697,2]
[352064450,1738920632830,-595.05984113,0.00013697,2]
[352064451,1738920632839,-500.0,0.00013697,2]
[352064452,1738920632850,-500.0,0.00013698,2]
[352064453,1738920632860,-500.0,0.00013698,2]
[352064454,1738920632870,-500.0,0.00013698,2]
[352064455,1738920632880,-500.0,0.00013698,2]
[352064456,1738920632890,-500.0,0.00013698,2]
[352064457,1738920632900,-500.0,0.00013698,2]
[352064458,1738920632910,-558.34902161,0.00013698,2]
[352064459,1738920632919,-500.0,0.00013698,2]
[352064460,1738920632928,-500.0,0.00013698,2]
[352064461,1738920632938,-500.0,0.00013698,2]
[352064462,1738920632948,-621.93622851,0.00013698,2]
[352064463,1738920632958,-626.2347973,0.00013698,2]
[352064464,1738920632967,-590.94673044,0.00013698,2]
[352064465,1738920632977,-566.39591227,0.00013698,2]
[352064466,1738920632986,-500.0,0.00013698,2]
[352064467,1738920632996,-500.0,0.00013698,2]
[352064468,1738920633006,-396.26700977,0.00013698,2]
[352064469,1738920633016,-500.0,0.00013698,2]
[352064470,1738920633025,-500.0,0.00013698,2]
[352064471,1738920633036,-500.0,0.00013698,2]
[352064472,1738920633047,-501.06939094,0.00013698,2]
[352064473,1738920633056,-501.16594968,0.00013698,2]
[352064474,1738920633066,-500.0,0.00013698,2]
[352064475,1738920633076,-500.0,0.00013698,2]
[352064476,1738920633086,-500.0,0.00013698,2]
[352064477,1738920633097,-500.0,0.00013698,2]
[352064478,1738920633107,-500.0,0.00013698,2]
[352064479,1738920633117,-500.0,0.00013698,2]
[352064480,1738920633127,-500.86479596,0.00013698,2]
[352064481,1738920633137,-500.47771677,0.00013698,2]
[352064482,1738920633147,-500.0,0.00013698,2]
[352064483,1738920633157,-500.32003596,0.00013698,2]
[352064484,1738920633166,-500.47288264,0.00013698,2]
[352064485,1738920633176,-577.72659919,0.00013698,2]
[352064486,1738920633186,-375.29029806,0.00013698,2]
[352064487,1738920633197,-500.0,0.00013698,2]
[352064488,1738920633207,-500.0,0.00013698,2]
[352064489,1738920633218,-500.44520344,0.00013698,2]
[352064490,1738920633228,-500.0,0.00013698,2]
[352064491,1738920633238,-500.0,0.00013698,2]
[352064492,1738920633248,-527.51,0.00013698,2]
[352064493,1738920633257,-500.69327612,0.00013698,2]
[352064494,1738920633267,-500.5930231,0.00013698,2]
[352064495,1738920633276,-564.26921518,0.00013698,2]
[352064496,1738920633286,-501.13814681,0.00013698,2]
[352064497,1738920633296,-500.0,0.00013698,2]
[352064498,1738920633306,-500.0,0.00013698,2]
[352064499,1738920633316,-500.0,0.00013698,2]
[352064500,1738920633326,-86.85731999,0.00013698,2]
[352064501,1738920633415,-502.8591512,0.00013698,2]